Workbook

Sheet Leht1
C1: Tartu Vallavolikogu 19.12.2019 määruse nr 28 juurde
C2: TARTU VALLA 2019. AASTA EELARVE | D2: Eelarve | E2: Lisaeelarve | F2: Täpsustatud eelarve
A3: I | C3: PÕHITEGEVUSE TULUD
C4: Kirje nimetus
A5: 30 | C5: MAKSUTULUD | D5: 10603300 | E5: =+E6+E7 -> 500000 | F5: =+F6+F7 -> 11103300
A6: 3000 | C6: Füüsilise isiku tulumaks | D6: 10270300 | E6: 500000 | F6: =+E6+D6 -> 10770300
A7: 3030 | C7: Maamaks | D7: 333000 | F7: =+E7+D7 -> 333000
A8: 32 | C8: TULU KAUPADE JA TEENUSTE MÜÜKGIST | D8: 1384572 | E8: 13471 | F8: =+E8+D8 -> 1398043
A9: 35 | C9: SAADAVAD TOETUSED TEGEVUSKULUDEKS | D9: 5845059 | E9: =+E10+E11+E14 -> 193559 | F9: =+F10+F11+F14 -> 6038618
A10: 3500 | C10: Toetused tegevuskuludeks | D10: 120673 | E10: 173398 | F10: =+E10+D10 -> 294071
C11: Mittesihtotstarbelised toetused | D11: 5546629 | E11: =+E12+E13 -> 3019 | F11: =+E11+D11 -> 5549648
A12: 35200 | C12: s.h.tasandusfond (lg 1) | D12: 1619893 | E12: 0 | F12: 1619893
A13: 35201 | C13: s.h.toetusfond (lg 2) | D13: 3926736 | E13: 3019 | F13: 3929755
A14: 3521 | C14: tegevustoetus | D14: 177757 | E14: 17142 | F14: 194899
A15: 38 | C15: MUUD TEGEVUSTULUD | D15: 50000 | E15: =+E16+E17+E18 -> 185773 | F15: 235773
A16: 382520 | C16: Maa-ainese kaevand.õiguse tasu | D16: 40000 | E16: 100000 | F16: 140000
A17: 382540 | C17: Laekumine vee erikasutusest | D17: 10000 | F17: 10000
A18: 3888 | C18: Muud tegevustulud | E18: 85773 | F18: 85773
C19: PÕHITEGEVUSE TULUD KOKKU | D19: 17882931 | E19: =+E5+E8+E9+E15 -> 892803 | F19: =+F5+F8+F9+F15 -> 18775734
A21: II | C21: PÕHITEGEVUSE KULUD
A22: klassi-fikaator | C22: Põhitegevuse kulude jaotus tegevusalade lõikes
A23: 01 | C23: ÜLDISED VALITSUSSEKTORI TEENUSED | D23: 974751 | E23: =+E24+E27+E31+E32+E34+E37 -> -76220 | F23: =+D23+E23 -> 898531
A24: 01111 | C24: Valla- ja linnavolikogu | D24: 94825 | E24: =+E25+E26 -> 0 | F24: =+E24+D24 -> 94825
B25: 50 | C25: Personalikulud (koos maksudega) | D25: 69025 | F25: =+E25+D25 -> 69025
B26: 55 | C26: Majandamiskulud | D26: 25800 | F26: 25800
A27: 01112 | C27: Valla- ja linnavalitsus | D27: 688715 | E27: =+E28+E29+E30 -> 1727 | F27: 690442
B28: 50 | C28: Personalikulud (koos maksudega) | D28: 477730 | F28: 477730
B29: 55 | C29: Majandamiskulud | D29: 205985 | E29: -8251 | F29: 197734
B30: 60 | C30: Muud kulud (riigilõiv, maamaks,saaste) | D30: 5000 | E30: 9978 | F30: 14978
A31: 01114 | C31: Reservfond | D31: 102570 | E31: -70504 | F31: 32066
A32: 01310 | C32: Õppelaenude tasumine (RM vahendid) | D32: 515 | E32: 0 | F32: 515
B33: 50 | C33: Personalikulud | D33: 515 | F33: 515
A34: 01600 | C34: Muud teenused (valimised) | D34: 38126 | E34: =+E35+E36 -> -443 | F34: 37683
B35: 50 | C35: Personalikulud | D35: 35000 | F35: 35000
B36: 55 | C36: Majandamiskulud | D36: 3126 | E36: -443 | F36: 2683
A37: 01800 | C37: Üldiseloomuga ülekanded valitsussektoris | D37: 50000 | E37: =+E38 -> -7000 | F37: 43000
B38: 45 | C38: Antud toetused, liikmemaksud | D38: 50000 | E38: -7000 | F38: 43000
A39: 02 | C39: RIIGIKAITSE | D39: 10000 | E39: =+E40 -> -7800 | F39: 2200
A40: 02200 | C40: Tsiviilkaitse | D40: 10000 | E40: =+E41 -> -7800 | F40: 2200
B41: 55 | C41: Majandamiskulud | D41: 10000 | E41: -7800 | F41: 2200
A42: 03 | C42: AVALIK KORD JA JULGEOLEK | D42: 11000 | E42: 0 | F42: 11000
A43: 03200 | B43: 55 | C43: Päästeteenused | D43: 11000 | E43: 0 | F43: 11000
B44: 55 | C44: Majandamiskulud | D44: 11000 | F44: 11000
A45: 04 | C45: MAJANDUS | D45: 690135 | E45: =+E46+E49+E51+E54+E57+E59+E62 -> 91633 | F45: 781768
A46: 045101 | C46: Autotransport | D46: 43780 | E46: =+E47+E48 -> 16000 | F46: 59780
B47: 50 | C47: Personalikulud (koos maksudega) | D47: 16060 | F47: 16060
B48: 55 | C48: Majandamiskulud | D48: 27720 | E48: 16000 | F48: 43720
A49: 045102 | C49: Valla teed , tänavad jm.rajatised (jooksev remont) | D49: 150000 | E49: =+E50 -> 0 | F49: 150000
B50: 55 | C50: Majandamiskulud | D50: 150000 | F50: 150000
A51: 04520 | C51: Veetransport | D51: 10315 | E51: =+E52+E53 -> 4133 | F51: 14448
B52: 50 | C52: Personalikulud (koos maksudega) | D52: 4815 | E52: 1600 | F52: 6415
B53: 55 | C53: Majandamiskulud | D53: 5500 | E53: 2533 | F53: 8033
A54: 04710 | C54: Kaubandus ja laondus | D54: 9600 | E54: =+E55+E56 -> 6000 | F54: 15600
B55: 45 | C55: Sihtotstarbelised eraldised | D55: 2100 | E55: 5300 | F55: 7400
B56: 55 | C56: Majandamiskulud | D56: 7500 | E56: 700 | F56: 8200
A57: 04740 | C57: Planeeringud, projektid ja muu arendustegevus | D57: 87500 | E57: =+E58 -> 15500 | F57: 103000
B58: 55 | C58: Majandamiskulud (projektide taotlused, arendus) | D58: 87500 | E58: 15500 | F58: 103000
A59: 049001 | C59: Majanduse haldus | D59: 322240 | E59: =+E60+E61 -> 50000 | F59: 372240
B60: 50 | C60: Personalikulud (koos maksudega) | D60: 235000 | E60: 45000 | F60: 280000
B61: 55 | C61: Majandamiskulud | D61: 87240 | E61: 5000 | F61: 92240
A62: 049002 | C62: Tuuliku 11 (lasteaia hoone) | D62: 66700 | E62: 0 | F62: 66700
B63: 55 | C63: Majandamiskulud | D63: 66700 | F63: 66700
A64: 05 | C64: KESKKONNAKAITSE | D64: 770600 | E64: =+E65+E68 -> 168040 | F64: 938640
A65: 05100 | C65: Jäätmekäitlus (sh prügivedu) | D65: 39000 | E65: =+E66+E67 -> -21500 | F65: 17500
B66: 45 | C66: Antud toetused | D66: 15000 | E66: -13500 | F66: 1500
B67: 55 | C67: Majandamiskulud | D67: 24000 | E67: -8000 | F67: 16000
A68: 05101 | C68: Avalike alade puhastus(teed,tänavad, haljasaalad) | D68: =+D69+D70 -> 731600 | E68: =+E69+E70 -> 189540 | F68: 921140
B69: 50 | C69: Personalikulud (koos maksudega) | D69: 15000 | E69: -11000 | F69: 4000
B70: 55 | C70: Majandamiskulud | D70: 716600 | E70: 200540 | F70: 917140
A71: 06 | C71: ELAMU- JA KOMMUNAALMAJANDUS | D71: 195100 | E71: =+E72+E74+E76+E79 -> -4300 | F71: 190800
A72: 06300 | C72: Veevarustus | D72: 6700 | E72: =+E73 -> 4000 | F72: 10700
B73: 5512 | C73: Rajatiste majandamiskulud | D73: 6700 | E73: 4000 | F73: 10700
A74: 06400 | C74: Tänavavalgustus | D74: 80000 | E74: 0 | F74: 80000
B75: 55 | C75: Majandamiskulud (rajatiste korrashoid) | D75: 80000 | F75: 80000
A76: 06605 | C76: Muu elamu- ja kommunaalmajandus | D76: 50400 | E76: =+E77+E78 -> -8300 | F76: 42100
B77: 50 | C77: Personalikulud | D77: 20000 | E77: -2700 | F77: 17300
B78: 55 | C78: Majandamiskulud | D78: 30400 | E78: -5600 | F78: 24800
A79: 06605 | C79: Elamumajandus (valla korterid) | D79: 58000 | E79: 0 | F79: 58000
B80: 55 | C80: Majandamiskulud | D80: 58000 | F80: 58000
A81: 07 | C81: Üldmeditsiiniteenused | D81: 4400 | E81: 0 | F81: 4400
A82: 07210 | B82: 55 | C82: Majandamiskulud | D82: 4400 | E82: 0 | F82: 4400
A83: 08 | C83: VABA AEG, KULTUUR, RELIGIOON | D83: 1729984 | E83: =+E84+E87+E89+E92+E93+E96+E100+E102+E105+E108+E111+E114+E118+E121+E124+E127+E130+E133+E136+E139+E142+E145+E148+E151+E154+E157+E160+E162+E165+E167+E169 -> 42919 | F83: 1772903
A84: 081021 | C84: Kõrveküla Spordihall | D84: 45300 | E84: =+E85+E86 -> 12150 | F84: 57450
B85: 50 | C85: Personalikulud (koos maksudega) | D85: 26300 | F85: 26300
B86: 55 | C86: Majandamiskulud | D86: 19000 | E86: 12150 | F86: 31150
A87: 081023 | B87: 55 | C87: Ülevallalised spordiüritused | D87: 45250 | E87: =+E88 -> 6610 | F87: 51860
B88: 45 | C88: Tegevustoetus | D88: 3250 | E88: 6610 | F88: 9860
A89: 081024 | C89: Spordikool, Lähte Spordihall | D89: 306717 | E89: =+E90+E91 -> 14857 | F89: 321574
B90: 50 | C90: Personalikulud (koos maksudega) | D90: 212517 | E90: 14602 | F90: 227119
B91: 55 | C91: Majandamiskulud | D91: 94200 | E91: 255 | F91: =+E91+D91 -> 94455
A92: 081025 | B92: 55 | C92: Arvlemine spordiklubid | D92: 55000 | E92: -5000 | F92: =+E92+D92 -> 50000
A93: 081022 | C93: Laeva Spordihoone | D93: 25605 | E93: =+E94+E95 -> -5000 | F93: 20605
B94: 50 | C94: Personalikulud (koos maksudega) | D94: 4790 | F94: 4790
B95: 55 | C95: Majandamiskulud | D95: 20815 | E95: -5000 | F95: 15815
A96: 081026 | C96: Valla spordijuht | D96: 46740 | E96: =+E97+E98+E99 -> 0 | F96: 46740
B97: 45 | C97: Tegevustoetus | D97: 28740 | F97: 28740
B98: 50 | C98: Personalikulud (koos maksudega) | D98: 17000 | F98: 17000
B99: 55 | C99: Majandamiskulud | D99: 1000 | F99: 1000
A100: 081027 | C100: Terviserajad | D100: 80000 | E100: 0 | F100: 80000
B101: 55 | C101: Majandamiskulud | D101: 80000 | F101: 80000
A102: 081072 | C102: Laeva Noortekeskus | D102: 48315 | E102: =+E103+E104 -> 676 | F102: 48991
B103: 50 | C103: Personalikulud (koos maksudega) | D103: 20825 | F103: 20825
B104: 55 | C104: Majandamiskulud | D104: 27490 | E104: 676 | F104: 28166
A105: 081073 | C105: Tabivere Noortekeskus | D105: 26458 | E105: =+E106+E107 -> -68 | F105: 26390
B106: 50 | C106: Personalikulud (koos maksudega) | D106: 16650 | E106: -3175 | F106: 13475
B107: 55 | C107: Majandamiskulud | D107: 9808 | E107: 3107 | F107: 12915
A108: 081074 | C108: Maarja-Magdaleena Noortekeskus | D108: 28172 | E108: =+E109+E110 -> -2598 | F108: 25574
B109: 50 | C109: Personalikulud (koos maksudega) | D109: 16650 | E109: -3123 | F109: 13527
B110: 55 | C110: Majandamiskulud | D110: 11522 | E110: 525 | F110: 12047
A111: 081076 | C111: Lähte Noortekeskus | D111: 38875 | E111: =+E112+E113 -> -13000 | F111: 25875
B112: 50 | C112: Personalikulud (koos maksudega) | D112: 18875 | E112: -13000 | F112: 5875
B113: 55 | C113: Majandamiskulud | D113: 20000 | F113: 20000
A114: 08109 | C114: Ülevallalised kultuuriüritused | D114: 159310 | E114: =+E115+E116+E117 -> 6484 | F114: 165794
B115: 45 | C115: Antud toetused | D115: 83630 | E115: 1400 | F115: 85030
B116: 50 | C116: Personalikulud (koos maksudega) | E116: 15454
B117: 55 | C117: Majandamiskulud | D117: 75680 | E117: -10370 | F117: 65310
A118: 082012 | C118: Lähte Ühisraamatukogu | D118: 41662 | E118: =+E119+E120 -> 0 | F118: 41662
B119: 50 | C119: Personalikulud (koos maksudega) | D119: 29142 | F119: 29142
B120: 55 | C120: Majandamiskulud | D120: 12520 | F120: 12520
A121: 082013 | C121: Äksi Raamatukogu | D121: 53645 | E121: =+E122+E123 -> 6000 | F121: 59645
B122: 50 | C122: Personalikulud (koos maksudega) | D122: 16620 | F122: 16620
B123: 55 | C123: Majandamiskulud | D123: 37025 | E123: 6000 | F123: 43025
A124: 082014 | C124: Tammistu Raamatukogu | D124: 19915 | E124: =+E125+E126 -> 5000 | F124: 24915
B125: 50 | C125: Personalikulud (koos maksudega) | D125: 14130 | F125: 14130
B126: 55 | C126: Majandamiskulud | D126: 5785 | E126: 5000 | F126: 10785
A127: 082015 | C127: Vedu Raamatukogu | D127: 18324 | E127: =+E128+E129 -> 0 | F127: 18324
B128: 50 | C128: Personalikulud (koos maksudega) | D128: 9104 | F128: 9104
B129: 55 | C129: Majandamiskulud | D129: 9220 | F129: 9220
A130: 082016 | C130: Kõrveküla Raamatukogu | D130: 26050 | E130: =+E131+E132 -> 1039 | F130: 27089
B131: 50 | C131: Personalikulud (koos maksudega) | D131: 10600 | E131: 332 | F131: 10932
B132: 55 | C132: Majandamiskulud | D132: 15450 | E132: 707 | F132: 16157
A133: 082017 | C133: Kõrveküla Raamatukogu (maakonna rmtk.) | D133: 177757 | E133: =+E134+E135 -> 12119 | F133: 189876
B134: 50 | C134: Personalikulud (koos maksudega) | D134: 73851 | E134: 9633 | F134: 83484
B135: 55 | C135: Majandamiskulud (teavikud) | D135: 103906 | E135: 2486 | F135: 106392
A136: 082011 | C136: Laeva Ramatukogu | D136: 27200 | E136: =+E137+E138 -> 0 | F136: 27200
B137: 50 | C137: Personalikulud (koos maksudega) | D137: 14000 | F137: 14000
B138: 55 | C138: Majandamiskulud | D138: 13200 | F138: 13200
A139: 082018 | C139: Tabivere Raamatukogu | D139: 30300 | E139: =+E140+E141 -> 0 | F139: 30300
B140: 50 | C140: Personalikulud (koos maksudega) | D140: 20900 | F140: 20900
B141: 55 | C141: Majandamiskulud | D141: 9400 | F141: 9400
A142: 082019 | C142: Elistvere Raamatukogu | D142: 16490 | E142: =+E143+E144 -> 0 | F142: 16490
B143: 50 | C143: Personalikulud (koos maksudega) | D143: 9640 | F143: 9640
B144: 55 | C144: Majandamiskulud | D144: 6850 | F144: 6850
A145: 08201a | C145: Maarja raamatukogu | D145: 18075 | E145: =+E146+E147 -> 0 | F145: 18075
B146: 50 | C146: Personalikulud (koos maksudega) | D146: 10760 | F146: 10760
B147: 55 | C147: Majandamiskulud | D147: 7315 | F147: 7315
A148: 08201b | C148: Piirissaare raamatukogu | D148: 5740 | E148: =+E149+E150 -> 0 | F148: 5740
B149: 50 | C149: Personalikulud (koos maksudega) | D149: 4340 | F149: 4340
B150: 55 | C150: Majandamiskulud | D150: 1400 | F150: 1400
A151: 082021 | C151: Laeva kultuurimaja | D151: 51650 | E151: =+E152+E153 -> 1000 | F151: 52650
B152: 50 | C152: Personalikulud (koos maksudega) | D152: 21100 | E152: 1000 | F152: 22100
B153: 55 | C153: Majandamiskulud | D153: 30550 | F153: 30550
A154: 082023 | C154: Maarja-Magdaleena rahvamaja | D154: 58430 | E154: =+E155+E156 -> 1050 | F154: 59480
B155: 50 | C155: Personalikulud (koos maksudega) | D155: 26680 | E155: 1050 | F155: 27730
B156: 55 | C156: Majandamiskulud | D156: 31750 | F156: =+E156+D156 -> 31750
A157: 082022 | C157: Tabivere rahvamaja | D157: 132444 | E157: =+E158+E159 -> 1800 | F157: =+D157+E157 -> 134244
B158: 50 | C158: Personalikulud (koos maksudega) | D158: 52984 | E158: 1500 | F158: 54484
B159: 55 | C159: Majandamiskulud | D159: 79460 | E159: 300 | F159: 79760
A160: 082031 | C160: Jääaja Keskus | D160: 65000 | E160: 0 | F160: 65000
B161: 4521 | C161: Antud toetused (SA Saadjärve ) | D161: 65000 | F161: 65000
A162: 082032 | C162: Tabivere muuseum | D162: 7660 | E162: =+E163+E164 -> 0 | F162: 7660
B163: 45 | C163: Toetused | D163: 4760 | F163: 4760
B164: 55 | C164: Majandamiskulud | D164: 2900 | F164: 2900
A165: 08300 | C165: Valla ajaleht, veebileht | D165: 46000 | E165: 0 | F165: 46000
B166: 55 | C166: Majandamiskulud | D166: 46000 | F166: 46000
A167: 08400 | C167: Religioon | D167: 9600 | E167: =+E168 -> -3300 | F167: 6300
B168: 45 | C168: Toetused | D168: 9600 | E168: -3300 | F168: 6300
A169: 08600 | C169: Muu vaba aeg, kultuur | D169: 18300 | E169: =+E170+E171 -> 3100 | F169: 21400
B170: 50 | C170: Personalikulud (koos maksudega) | D170: 11000 | E170: 3100 | F170: 14100
B171: 55 | C171: Majandamiskulud | D171: 7300 | F171: 7300
A172: 09 | C172: HARIDUS | D172: 10497531 | E172: =+E173+E177+E181+E184+E188+E190+E193+E196+E199+E201+E204+E207+E210+E213+E216+E219+E222+E224+E227+E229+E231+E233+E236+E238+E241+E244+E246+E249+E252+E255+E257+E260+E263+E265 -> 227650 | F172: =+F173+F177+F181+F184+F188+F190+F193+F196+F199+F201+F204+F207+F210+F213+F216+F219+F222+F224+F227+F229+F231+F233+F236+F238+F241+F244+F246+F249+F252+F255+F257+F260+F263+F265 -> 10725181
A173: 091101 | C173: Kõrveküla Lasteaed, Raadi lastehoid | D173: 1838451 | E173: =+E174+E175+E176 -> 5807 | F173: 1844258
B174: 45 | C174: Antud toetused (Raadi SA-le) | D174: 34538 | F174: 34538
B175: 50 | C175: Personalikulud (koos maksudega) | D175: 1119909 | E175: 1973 | F175: 1121882
B176: 55 | C176: Majandamiskulud | D176: 684004 | E176: 3834 | F176: 687838
A177: 091102 | C177: Lähte Lasteaed | D177: 743949 | E177: =+E178+E179+E180 -> 0 | F177: 743949
B178: 45 | C178: Antud toetused (Raadi SA-le) | D178: 2448 | F178: 2448
B179: 50 | C179: Personalikulud (koos maksudega) | D179: 455570 | F179: 455570
B180: 55 | C180: Majandamiskulud | D180: 285931 | F180: 285931
A181: 091107 | C181: Laeva Lasteaed | D181: 199232 | E181: =+E182+E183 -> 0 | F181: 199232
B182: 50 | C182: Personalikulud (koos maksudega) | D182: 144062 | F182: 144062
B183: 55 | C183: Majandamiskulud | D183: 55170 | F183: 55170
A184: 091106 | C184: Raadi Lasteaed Ripsik | D184: 409900 | E184: 0 | F184: 409900
B185: 45 | C185: Antud toetused (Raadi SA-le) | D185: 45000 | F185: 45000
B186: 50 | C186: Personalikulud (koos maksudega) | D186: 195000 | F186: 195000
B187: 55 | C187: Majandamiskulud | D187: 169900 | F187: 169900
A188: 091104 | C188: Arvlemised, lasteaedade kohamaks | D188: 214000 | E188: =+E189 -> 40000 | F188: 254000
B189: 55 | C189: Õppevahendid ja kohamaksud OV-dele jm. | D189: 214000 | E189: 40000 | F189: 254000
A190: 091108 | C190: Tabivere Lasteaed | D190: 506884 | E190: =+E191+E192 -> 3596 | F190: 510480
B191: 50 | C191: Personalikulud (koos maksudega) | D191: 423766 | E191: 3000 | F191: 426766
B192: 55 | C192: Majandamiskulud | D192: 83118 | E192: 596 | F192: 83714
A193: 092121 | C193: Kõrveküla Põhikool | D193: 712697 | E193: =+E194+E195 -> 24532 | F193: 737229
B194: 50 | C194: Personalikulud (koos maksudega) | D194: 247627 | E194: 5400 | F194: 253027
B195: 55 | C195: Majandamiskulud | D195: 465070 | E195: 19132 | F195: 484202
A196: 092122 | C196: Kõrveküla PKõhikool (õpetajad) | D196: 883111 | E196: =+E197+E198 -> 0 | F196: 883111
B197: 50 | C197: Personalikulud (koos maksudega) | D197: 852676 | F197: 852676
B198: 55 | C198: Majandamiskulud | D198: 30435 | F198: 30435
A199: 092125 | C199: Kõrveküla Põhikool juhid | D199: 59407 | E199: =+E200 -> 0 | F199: 59407
B200: 50 | C200: Personalikulud | D200: 59407 | F200: 59407
A201: 092126 | C201: Laeva Põhikool | D201: 129368 | E201: =+E202+E203 -> -14568 | F201: 114800
... 131 more rows
